[Event "Chessity Nationale Pupillendag 2018 - Groep G"]
[Site "Meppel, Netherlands"]
[Date "2018.06.23"]
[Round "1.1"]
[White "Smeets, Daphne"]
[Black "Sterk, Ralf"]
[Result "1/2-1/2"]
[TimeControl "15 min + 10 sec"]
[WhiteElo "347"]
[BlackElo "849"]

1. e4 {[%clk 00:15:18]} {[%emt 00:00:01]} e5 {[%clk 00:15:19]} {[%emt
00:00:01]} 2. Nf3 {[%clk 00:15:25]} {[%emt 00:00:04]} Nc6 {[%clk 00:15:28]}
{[%emt 00:00:01]} 3. Nc3 {[%clk 00:15:33]} {[%emt 00:00:02]} Bc5 {[%emt
00:00:04]} 4. Bb5 {[%clk 00:15:22]} {[%emt 00:00:19]} a6 {[%clk 00:15:18]}
{[%emt 00:00:28]} 5. Bc4 {[%clk 00:15:25]} {[%emt 00:00:06]} Nf6 {[%clk
00:15:21]} {[%emt 00:00:07]} 6. Na4 {[%clk 00:15:28]} {[%emt 00:00:06]} Ba7
{[%clk 00:15:28]} {[%emt 00:00:04]} 7. d3 {[%clk 00:15:08]} {[%emt 00:00:30]}
h6 {[%clk 00:15:35]} {[%emt 00:00:03]} 8. Nh4 {[%clk 00:14:51]} {[%emt
00:00:25]} O-O {[%clk 00:15:41]} {[%emt 00:00:07]} 9. Nf3 {[%clk 00:14:26]}
{[%emt 00:00:34]} b5 {[%clk 00:15:43]} {[%emt 00:00:08]} 10. Bb3 {[%clk
00:14:32]} {[%emt 00:00:04]} bxa4 {[%clk 00:15:51]} {[%emt 00:00:03]} 11. Bxa4
{[%clk 00:14:41]} Ne7 {[%emt 00:00:10]} 12. Bb3 {[%emt 00:00:07]} d6 {[%clk
00:15:42]} {[%emt 00:00:02]} 13. Ba4 {[%clk 00:14:08]} {[%emt 00:00:44]} Bd7
{[%emt 00:00:08]} 14. Bxd7 {[%emt 00:00:02]} Qxd7 {[%clk 00:15:38]} {[%emt
00:00:03]} 15. Be3 {[%clk 00:14:00]} {[%emt 00:00:18]} Bb8 {[%clk 00:15:39]}
{[%emt 00:00:07]} 16. Bd2 {[%clk 00:13:49]} {[%emt 00:00:23]} d5 {[%clk
00:15:42]} {[%emt 00:00:08]} 17. exd5 {[%clk 00:13:57]} {[%emt 00:00:01]} Qxd5
{[%clk 00:15:47]} {[%emt 00:00:04]} 18. g4 {[%clk 00:13:48]} {[%emt 00:00:19]}
Nxg4 {[%clk 00:15:46]} {[%emt 00:00:11]} 19. Rg1 {[%clk 00:13:55]} e4 {[%clk
00:15:31]} {[%emt 00:00:28]} 20. Nh4 {[%clk 00:13:32]} {[%emt 00:00:34]} Qd7
{[%emt 00:00:25]} 21. Rxg4 {[%emt 00:00:17]} exd3 {[%clk 00:14:48]} {[%emt
00:00:11]} 22. cxd3 {[%clk 00:13:41]} Qe6+ {[%emt 00:00:08]} 23. Qe2 {[%emt
00:00:28]} Qxe2+ {[%clk 00:14:19]} {[%emt 00:00:04]} 24. Kxe2 {[%clk 00:13:49]}
{[%emt 00:00:02]} Re8 {[%clk 00:14:16]} {[%emt 00:00:12]} 25. Re4 {[%clk
00:13:52]} {[%emt 00:00:08]} Ba7 {[%clk 00:14:19]} {[%emt 00:00:07]} 26. Be3
{[%clk 00:13:52]} {[%emt 00:00:10]} Nf5 {[%clk 00:13:39]} {[%emt 00:00:49]} 27.
Nxf5 {[%clk 00:13:56]} {[%emt 00:00:07]} g6 {[%clk 00:13:32]} {[%emt 00:00:17]}
28. Rxe8+ {[%clk 00:13:59]} {[%emt 00:00:07]} Rxe8 {[%clk 00:13:39]} {[%emt
00:00:03]} 29. Nxh6+ {[%clk 00:14:04]} {[%emt 00:00:05]} Kg7 {[%clk 00:13:38]}
{[%emt 00:00:05]} 30. Ng4 {[%clk 00:14:05]} {[%emt 00:00:15]} f5 {[%clk
00:13:39]} {[%emt 00:00:08]} 31. Nh6 {[%clk 00:13:49]} {[%emt 00:00:38]} Bxe3
{[%clk 00:13:54]} {[%emt 00:00:05]} 32. fxe3 {[%clk 00:13:57]} {[%emt
00:00:02]} Kxh6 {[%clk 00:14:01]} {[%emt 00:00:02]} 33. Rh1 {[%clk 00:14:04]}
{[%emt 00:00:04]} Rb8 {[%emt 00:00:16]} 34. b3 {[%emt 00:00:03]} Kg5 {[%clk
00:13:44]} {[%emt 00:00:07]} 35. Rf1 {[%clk 00:14:06]} {[%emt 00:00:08]} Rh8
{[%clk 00:13:51]} {[%emt 00:00:03]} 36. Rf2 {[%clk 00:14:10]} {[%emt 00:00:06]}
Kh6 {[%emt 00:00:12]} 37. Rf1 {[%emt 00:00:06]} Kg7 {[%clk 00:13:40]} {[%emt
00:00:03]} 38. Rh1 {[%clk 00:14:18]} {[%emt 00:00:02]} g5 {[%emt 00:00:05]} 39.
h3 {[%emt 00:00:03]} Re8 {[%clk 00:13:36]} {[%emt 00:00:05]} 40. Re1 {[%clk
00:14:09]} {[%emt 00:00:19]} f4 {[%clk 00:13:42]} {[%emt 00:00:04]} 41. e4
{[%clk 00:14:10]} {[%emt 00:00:09]} Rf8 {[%clk 00:13:45]} {[%emt 00:00:08]} 42.
Kd2 {[%clk 00:14:08]} {[%emt 00:00:12]} Kg6 {[%clk 00:13:46]} {[%emt 00:00:09]}
43. a4 {[%clk 00:14:09]} {[%emt 00:00:08]} f3 {[%clk 00:13:54]} {[%emt
00:00:04]} 44. Rf1 {[%clk 00:14:13]} {[%emt 00:00:05]} f2 {[%clk 00:14:00]}
{[%emt 00:00:05]} 45. Ke2 {[%clk 00:14:21]} {[%emt 00:00:02]} Kh5 {[%clk
00:14:06]} {[%emt 00:00:03]} 46. Rxf2 {[%clk 00:14:30]} {[%emt 00:00:02]} Rxf2+
{[%clk 00:14:14]} {[%emt 00:00:02]} 47. Kxf2 {[%clk 00:14:38]} {[%emt
00:00:02]} Kh4 48. Kg2 {[%emt 00:00:03]} c6 {[%clk 00:14:13]} {[%emt 00:00:01]}
49. d4 {[%clk 00:14:45]} {[%emt 00:00:08]} Kh5 {[%emt 00:00:03]} 50. Kg3 {[%emt
00:00:02]} Kg6 {[%clk 00:14:16]} {[%emt 00:00:02]} 51. h4 {[%clk 00:14:53]}
{[%emt 00:00:03]} gxh4+ {[%clk 00:14:23]} {[%emt 00:00:03]} 52. Kxh4 {[%clk
00:15:01]} {[%emt 00:00:02]} Kf6 {[%clk 00:14:32]} 53. e5+ {[%clk 00:15:05]}
{[%emt 00:00:07]} Ke6 {[%clk 00:14:40]} {[%emt 00:00:01]} 54. Kg4 {[%clk
00:15:14]} a5 {[%clk 00:14:45]} {[%emt 00:00:05]} 55. Kf4 {[%clk 00:15:23]}
{[%emt 00:00:01]} Ke7 {[%clk 00:14:52]} {[%emt 00:00:04]} 56. Ke4 {[%clk
00:15:31]} Ke6 {[%clk 00:15:00]} {[%emt 00:00:02]} 57. Kd3 {[%clk 00:15:40]}
{[%emt 00:00:02]} Kd5 {[%emt 00:00:04]} 58. Kc3 {[%emt 00:00:01]} c5 {[%clk
00:15:02]} {[%emt 00:00:03]} 59. dxc5 {[%clk 00:15:47]} {[%emt 00:00:03]} Kxc5
{[%clk 00:15:10]} {[%emt 00:00:02]} 60. b4+ {[%clk 00:15:53]} {[%emt 00:00:04]}
axb4+ {[%clk 00:15:18]} {[%emt 00:00:02]} 61. Kb3 {[%clk 00:15:57]} {[%emt
00:00:06]} Kd5 {[%clk 00:15:26]} 62. Kxb4 Kxe5 {[%clk 00:15:35]} 63. Kb5 {[%emt
00:00:04]} Kd6 {[%clk 00:15:34]} {[%emt 00:00:03]} 64. a5 {[%clk 00:16:19]}
{[%emt 00:00:08]} Kc7 {[%clk 00:15:42]} {[%emt 00:00:02]} 65. a6 {[%clk
00:16:28]} {[%emt 00:00:02]} Kb8 {[%clk 00:15:50]} {[%emt 00:00:02]} 66. Kb6
{[%clk 00:16:37]} {[%emt 00:00:01]} Ka8 {[%clk 00:15:58]} 67. Kb5 {[%clk
00:16:43]} {[%emt 00:00:06]} Kb8 {[%clk 00:16:05]} {[%emt 00:00:03]} 68. Kb6
{[%clk 00:16:52]} Ka8 {[%clk 00:16:14]} {[%emt 00:00:01]} 69. Ka5 {[%clk
00:16:52]} {[%emt 00:00:10]} Kb8 {[%clk 00:16:21]} {[%emt 00:00:03]} 70. Kb6
{[%clk 00:16:58]} {[%emt 00:00:04]} Ka8 {[%clk 00:16:29]} 71. Kc6 {[%clk
00:17:04]} {[%emt 00:00:05]} Kb8 {[%clk 00:16:25]} {[%emt 00:00:14]} 72. Kb6
{[%clk 00:17:10]} {[%emt 00:00:05]} Ka8 {[%clk 00:16:31]} {[%emt 00:00:01]} 73.
Kb5 {[%clk 00:17:08]} {[%emt 00:00:14]} Kb8 {[%clk 00:16:37]} {[%emt 00:00:04]}
74. Ka5 {[%clk 00:17:11]} {[%emt 00:00:07]} Ka8 {[%clk 00:16:46]} {[%emt
00:00:02]} 75. Ka4 {[%clk 00:17:15]} {[%emt 00:00:06]} Kb8 {[%clk 00:16:53]}
{[%emt 00:00:02]} 76. Kb5 {[%clk 00:17:22]} {[%emt 00:00:03]} Ka8 {[%clk
00:17:02]} {[%emt 00:00:01]} 77. Kc6 {[%clk 00:17:31]} Kb8 {[%clk 00:17:11]}
{[%emt 00:00:02]} 78. Kb6 {[%clk 00:17:33]} {[%emt 00:00:08]} Ka8 {[%clk
00:17:19]} {[%emt 00:00:01]} 79. Kc5 {[%clk 00:17:39]} {[%emt 00:00:05]} Kb8
{[%clk 00:17:26]} {[%emt 00:00:02]} 80. Kb4 {[%clk 00:17:47]} {[%emt 00:00:03]}
Ka8 {[%clk 00:17:35]} {[%emt 00:00:01]} 81. Kb5 {[%clk 00:17:47]} {[%emt
00:00:11]} Kb8 {[%clk 00:17:43]} 82. Ka5 {[%emt 00:00:09]} Ka8 83. Kb5 {[%clk
00:17:58]} Kb8 {[%clk 00:18:01]} {[%emt 00:00:02]} 84. Kb6 {[%clk 00:18:07]}
{[%emt 00:00:01]} Ka8 {[%clk 00:18:10]} 85. Kb5 {[%clk 00:18:12]} {[%emt
00:00:04]} Kb8 {[%clk 00:18:18]} {[%emt 00:00:02]} 86. Kb6 {[%clk 00:18:27]}
{[%emt 00:00:07]} Ka8 {[%emt 00:00:03]} 87. a7 1/2-1/2

[Event "Chessity Nationale Pupillendag 2018 - Groep G"]
[Site "Meppel, Netherlands"]
[Date "2018.06.23"]
[Round "1.2"]
[White "Aubel, Daan"]
[Black "Brands, Robin"]
[Result "1-0"]
[TimeControl "15 min + 10 sec"]
[WhiteElo "833"]
[BlackElo "314"]

1. e4 {[%clk 00:15:18]} {[%emt 00:00:02]} e5 {[%clk 00:15:19]} {[%emt
00:00:02]} 2. Nf3 {[%clk 00:15:26]} {[%emt 00:00:01]} Nc6 {[%clk 00:15:28]}
{[%emt 00:00:02]} 3. Bb5 {[%clk 00:15:31]} {[%emt 00:00:04]} a6 {[%clk
00:15:35]} {[%emt 00:00:04]} 4. Bxc6 {[%clk 00:15:38]} {[%emt 00:00:02]} bxc6
{[%clk 00:15:44]} {[%emt 00:00:02]} 5. d3 {[%clk 00:15:45]} {[%emt 00:00:02]}
Nf6 {[%clk 00:15:48]} {[%emt 00:00:06]} 6. Nxe5 {[%clk 00:15:53]} {[%emt
00:00:02]} d6 {[%clk 00:15:52]} {[%emt 00:00:06]} 7. Nxc6 {[%clk 00:16:01]}
{[%emt 00:00:02]} Qd7 {[%clk 00:15:55]} {[%emt 00:00:08]} 8. Nd4 {[%clk
00:16:06]} {[%emt 00:00:04]} Qd8 {[%clk 00:16:01]} {[%emt 00:00:04]} 9. Bg5
{[%clk 00:16:11]} {[%emt 00:00:05]} Be7 {[%clk 00:16:04]} {[%emt 00:00:08]} 10.
O-O {[%clk 00:16:11]} {[%emt 00:00:09]} O-O {[%clk 00:16:10]} {[%emt 00:00:04]}
11. Nc3 {[%clk 00:16:14]} {[%emt 00:00:07]} Bg4 {[%clk 00:16:06]} {[%emt
00:00:14]} 12. Qd2 {[%clk 00:16:07]} {[%emt 00:00:17]} h6 {[%clk 00:16:13]}
{[%emt 00:00:04]} 13. Bxf6 {[%clk 00:16:10]} {[%emt 00:00:07]} Bxf6 {[%clk
00:16:21]} {[%emt 00:00:02]} 14. Nb3 {[%clk 00:16:05]} {[%emt 00:00:15]} Bg5
{[%clk 00:16:29]} {[%emt 00:00:01]} 15. f4 {[%clk 00:16:05]} {[%emt 00:00:11]}
Be7 {[%clk 00:16:29]} {[%emt 00:00:10]} 16. Nd5 {[%clk 00:16:02]} {[%emt
00:00:13]} Bh4 {[%clk 00:16:30]} {[%emt 00:00:08]} 17. f5 {[%clk 00:15:53]}
{[%emt 00:00:20]} Bg5 {[%clk 00:16:31]} {[%emt 00:00:08]} 18. Qe1 {[%clk
00:15:51]} {[%emt 00:00:12]} Bh4 {[%clk 00:16:35]} {[%emt 00:00:06]} 19. g3
{[%clk 00:15:48]} {[%emt 00:00:13]} Bg5 {[%clk 00:16:42]} {[%emt 00:00:03]} 20.
Qa5 {[%clk 00:15:37]} {[%emt 00:00:12]} c6 {[%clk 00:16:44]} {[%emt 00:00:08]}
21. Qxd8 {[%clk 00:15:37]} {[%emt 00:00:20]} Raxd8 {[%clk 00:16:52]} {[%emt
00:00:02]} 22. Nc3 {[%clk 00:15:32]} {[%emt 00:00:14]} Be3+ {[%clk 00:16:56]}
{[%emt 00:00:07]} 23. Kg2 {[%clk 00:15:36]} {[%emt 00:00:06]} c5 {[%clk
00:16:49]} {[%emt 00:00:17]} 24. h3 {[%clk 00:15:41]} {[%emt 00:00:03]} Bh5
{[%clk 00:16:50]} {[%emt 00:00:11]} 25. g4 {[%clk 00:15:50]} {[%emt 00:00:01]}
Bd4 {[%clk 00:16:51]} {[%emt 00:00:09]} 26. Nxd4 {[%clk 00:15:54]} {[%emt
00:00:06]} cxd4 {[%clk 00:16:59]} {[%emt 00:00:01]} 27. Nd5 {[%clk 00:16:02]}
{[%emt 00:00:03]} Rc8 {[%clk 00:16:54]} {[%emt 00:00:15]} 28. Ne7+ {[%clk
00:16:09]} {[%emt 00:00:03]} Kh8 {[%clk 00:17:01]} {[%emt 00:00:02]} 29. Nxc8
{[%clk 00:16:18]} {[%emt 00:00:02]} Rxc8 {[%clk 00:17:10]} {[%emt 00:00:01]} 30.
Rac1 {[%clk 00:16:18]} {[%emt 00:00:09]} g6 {[%clk 00:17:11]} {[%emt 00:00:10]}
31. gxh5 {[%clk 00:16:24]} {[%emt 00:00:04]} gxh5 {[%clk 00:17:19]} {[%emt
00:00:01]} 32. Kg3 {[%clk 00:16:24]} {[%emt 00:00:10]} Rb8 {[%clk 00:17:23]}
{[%emt 00:00:06]} 33. b3 {[%clk 00:16:31]} {[%emt 00:00:03]} Rg8+ {[%clk
00:17:26]} {[%emt 00:00:08]} 34. Kh4 {[%clk 00:16:38]} {[%emt 00:00:03]} Rg5
{[%clk 00:17:32]} {[%emt 00:00:03]} 35. Rg1 {[%clk 00:16:45]} {[%emt 00:00:03]}
Rxg1 {[%clk 00:17:38]} {[%emt 00:00:05]} 36. Rxg1 {[%clk 00:16:53]} {[%emt
00:00:02]} f6 {[%clk 00:17:33]} {[%emt 00:00:14]} 37. Kxh5 {[%clk 00:16:54]}
{[%emt 00:00:09]} Kh7 {[%clk 00:17:42]} {[%emt 00:00:02]} 38. Rg6 {[%clk
00:16:52]} {[%emt 00:00:11]} d5 {[%clk 00:17:47]} {[%emt 00:00:06]} 39. Rxh6
{[%clk 00:16:58]} {[%emt 00:00:02]} Kg7 {[%clk 00:17:55]} {[%emt 00:00:03]} 40.
Rg6+ {[%clk 00:16:57]} {[%emt 00:00:12]} Kf7 {[%clk 00:18:02]} {[%emt
00:00:02]} 41. Kh6 {[%clk 00:17:01]} {[%emt 00:00:06]} dxe4 {[%clk 00:18:09]}
{[%emt 00:00:04]} 42. dxe4 {[%clk 00:17:08]} {[%emt 00:00:02]} Ke7 {[%clk
00:18:15]} {[%emt 00:00:04]} 43. Kg7 {[%clk 00:17:09]} {[%emt 00:00:08]} Kd6
{[%clk 00:18:22]} {[%emt 00:00:04]} 44. Rxf6+ {[%clk 00:17:16]} {[%emt
00:00:04]} Ke5 {[%clk 00:18:30]} {[%emt 00:00:02]} 45. Re6+ {[%clk 00:17:16]}
{[%emt 00:00:10]} Kf4 {[%clk 00:18:38]} {[%emt 00:00:02]} 46. h4 {[%clk
00:17:22]} {[%emt 00:00:03]} Ke3 {[%clk 00:18:45]} {[%emt 00:00:03]} 47. Rc6
{[%clk 00:17:16]} {[%emt 00:00:16]} Kd2 {[%clk 00:18:49]} {[%emt 00:00:06]} 48.
f6 {[%clk 00:17:23]} {[%emt 00:00:03]} d3 {[%clk 00:18:54]} {[%emt 00:00:05]}
49. cxd3 {[%clk 00:17:28]} {[%emt 00:00:05]} Kxd3 {[%clk 00:19:03]} {[%emt
00:00:02]} 50. f7 {[%clk 00:17:33]} {[%emt 00:00:04]} Kxe4 {[%clk 00:19:10]}
{[%emt 00:00:03]} 51. f8=Q {[%emt 00:00:05]} Kd5 {[%clk 00:19:16]} {[%emt
00:00:03]} 52. Rxa6 {[%emt 00:00:08]} Kd4 {[%clk 00:19:19]} {[%emt 00:00:03]}
53. Qf5 {[%clk 00:17:48]} {[%emt 00:00:08]} Ke3 {[%emt 00:00:08]} 54. Re6+
{[%clk 00:17:55]} Kd4 {[%clk 00:19:29]} {[%emt 00:00:03]} 55. Qe4+ {[%clk
00:18:01]} {[%emt 00:00:05]} Kc5 {[%clk 00:19:36]} {[%emt 00:00:03]} 56. Rc6+
{[%clk 00:18:07]} {[%emt 00:00:03]} Kb5 {[%clk 00:19:40]} {[%emt 00:00:06]} 57.
Qc4+ {[%clk 00:17:52]} {[%emt 00:00:25]} Ka5 {[%clk 00:19:46]} {[%emt
00:00:04]} 58. Ra6# {[%emt 00:00:02]} 1-0

[Event "Chessity Nationale Pupillendag 2018 - Groep G"]
[Site "Meppel, Netherlands"]
[Date "2018.06.23"]
[Round "1.3"]
[White "Blom, Odette"]
[Black "Verwer, Oscar"]
[Result "0-1"]
[TimeControl "15 min + 10 sec"]
[WhiteElo "305"]
[BlackElo "833"]

1. e4 {[%clk 00:15:18]} d5 {[%clk 00:15:19]} {[%emt 00:00:02]} 2. exd5 {[%clk
00:15:23]} {[%emt 00:00:04]} Qxd5 {[%clk 00:15:27]} {[%emt 00:00:03]} 3. Nf3
{[%clk 00:15:25]} {[%emt 00:00:08]} Nf6 {[%clk 00:15:34]} {[%emt 00:00:02]} 4.
Nc3 {[%clk 00:15:23]} {[%emt 00:00:13]} Qa5 {[%clk 00:15:41]} {[%emt 00:00:02]}
5. d3 {[%clk 00:15:17]} {[%emt 00:00:16]} c6 {[%clk 00:15:46]} {[%emt
00:00:05]} 6. Bg5 {[%clk 00:15:13]} {[%emt 00:00:13]} Bg4 {[%clk 00:15:49]}
{[%emt 00:00:07]} 7. Bxf6 {[%clk 00:15:19]} {[%emt 00:00:06]} exf6 {[%clk
00:15:56]} {[%emt 00:00:03]} 8. Be2 {[%clk 00:15:22]} {[%emt 00:00:06]} Bd6
{[%clk 00:16:02]} {[%emt 00:00:05]} 9. O-O {[%clk 00:15:16]} {[%emt 00:00:15]}
O-O {[%clk 00:16:06]} {[%emt 00:00:07]} 10. Ne4 {[%clk 00:15:10]} {[%emt
00:00:16]} Bc7 {[%clk 00:15:41]} {[%emt 00:00:35]} 11. d4 {[%clk 00:14:52]}
{[%emt 00:00:27]} Qf5 {[%clk 00:15:26]} {[%emt 00:00:25]} 12. Qd3 {[%clk
00:14:34]} {[%emt 00:00:28]} Re8 {[%clk 00:15:09]} {[%emt 00:00:22]} 13. Ng3
{[%clk 00:14:28]} {[%emt 00:00:22]} Bxg3 {[%clk 00:14:58]} {[%emt 00:00:21]} 14.
hxg3 {[%clk 00:14:25]} {[%emt 00:00:12]} Qh5 {[%clk 00:13:52]} {[%emt
00:01:16]} 15. Rad1 {[%clk 00:13:45]} {[%emt 00:00:48]} Nd7 {[%clk 00:13:53]}
{[%emt 00:00:11]} 16. Rd2 {[%clk 00:13:07]} {[%emt 00:00:48]} c5 {[%clk
00:13:23]} {[%emt 00:00:41]} 17. dxc5 {[%clk 00:12:59]} {[%emt 00:00:17]} Nxc5
{[%clk 00:13:30]} {[%emt 00:00:03]} 18. Qb5 {[%clk 00:12:25]} {[%emt 00:00:42]}
a6 {[%clk 00:12:41]} {[%emt 00:01:03]} 19. Qb6 {[%clk 00:11:39]} {[%emt
00:00:51]} h6 {[%clk 00:10:12]} {[%emt 00:02:43]} 20. Qb4 {[%clk 00:11:03]}
{[%emt 00:00:28]} a5 {[%clk 00:09:52]} {[%emt 00:00:48]} 21. Qd4 {[%clk
00:10:35]} {[%emt 00:00:30]} Rad8 {[%clk 00:08:40]} {[%emt 00:01:30]} 22. Qc3
{[%clk 00:09:38]} {[%emt 00:00:54]} Ne4 {[%emt 00:01:02]} 23. Rxd8 {[%clk
00:09:05]} {[%emt 00:00:16]} Rxd8 {[%clk 00:08:23]} {[%emt 00:00:15]} 24. Bd3
{[%clk 00:08:28]} {[%emt 00:00:37]} Nxc3 {[%clk 00:08:20]} {[%emt 00:00:23]} 25.
bxc3 {[%clk 00:08:29]} {[%emt 00:00:09]} Bxf3 {[%clk 00:08:26]} {[%emt
00:00:03]} 26. gxf3 {[%clk 00:08:25]} {[%emt 00:00:13]} Qxf3 {[%clk 00:08:28]}
{[%emt 00:00:07]} 27. Re1 {[%clk 00:08:15]} {[%emt 00:00:22]} g5 {[%clk
00:08:32]} {[%emt 00:00:06]} 28. Re3 {[%clk 00:07:56]} {[%emt 00:00:22]} Qd5
{[%clk 00:08:20]} {[%emt 00:00:28]} 29. f3 {[%clk 00:07:20]} {[%emt 00:00:45]}
Qxa2 {[%clk 00:08:19]} {[%emt 00:00:14]} 30. c4 {[%clk 00:06:32]} {[%emt
00:00:52]} Qa1+ {[%clk 00:08:15]} {[%emt 00:00:19]} 31. Kf2 {[%clk 00:06:30]}
{[%emt 00:00:08]} Qd4 {[%clk 00:08:22]} {[%emt 00:00:08]} 32. Ke2 {[%clk
00:06:03]} {[%emt 00:00:37]} g4 {[%clk 00:08:17]} {[%emt 00:00:15]} 33. fxg4
{[%clk 00:06:03]} {[%emt 00:00:09]} Qxg4+ {[%clk 00:08:25]} {[%emt 00:00:03]}
34. Kf2 {[%clk 00:06:03]} {[%emt 00:00:07]} Qh3 {[%clk 00:08:19]} {[%emt
00:00:19]} 35. Kf3 {[%clk 00:05:58]} {[%emt 00:00:10]} Qh5+ {[%clk 00:07:56]}
{[%emt 00:00:37]} 36. Kf2 {[%clk 00:05:39]} {[%emt 00:00:24]} Kh8 {[%clk
00:07:54]} {[%emt 00:00:18]} 37. Re4 {[%clk 00:05:26]} {[%emt 00:00:22]} Rg8
{[%clk 00:07:56]} {[%emt 00:00:08]} 38. Be2 {[%clk 00:05:06]} {[%emt 00:00:30]}
Qh2+ {[%clk 00:07:59]} {[%emt 00:00:07]} 39. Kf3 {[%clk 00:05:06]} {[%emt
00:00:09]} Qxg3# {[%clk 00:08:02]} {[%emt 00:00:07]} 0-1

[Event "Chessity Nationale Pupillendag 2018 - Groep G"]
[Site "Meppel, Netherlands"]
[Date "2018.06.23"]
[Round "1.4"]
[White "Gelten, Evan"]
[Black "Tykhonov, Max"]
[Result "1-0"]
[TimeControl "15 min + 10 sec"]
[WhiteElo "757"]
[BlackElo "288"]

1. e4 {[%clk 00:15:19]} e5 2. Nf3 {[%clk 00:15:19]} Nc6 {[%clk 00:15:12]} 3.
Bc4 {[%clk 00:15:19]} Nf6 4. Nc3 {[%clk 00:15:19]} d6 {[%clk 00:15:12]} 5. Ng5
{[%clk 00:15:19]} Rg8 {[%clk 00:15:12]} 6. Be6 {[%clk 00:15:19]} b6 {[%clk
00:15:12]} 7. Bxc8 {[%clk 00:15:19]} Qxc8 {[%clk 00:15:12]} 8. Nf3 {[%clk
00:15:19]} Kd8 {[%clk 00:15:12]} 9. d3 {[%clk 00:15:19]} Qb7 {[%clk 00:15:12]}
10. Bg5 {[%clk 00:15:19]} Qa6 {[%clk 00:15:12]} 11. Nd5 {[%clk 00:15:19]} Kc8
{[%clk 00:15:12]} 12. Nxf6 {[%clk 00:15:19]} gxf6 {[%clk 00:15:12]} 13. Bxf6
{[%clk 00:15:19]} Kb7 {[%clk 00:15:12]} 14. c4 {[%clk 00:15:19]} Rc8 {[%clk
00:15:12]} 15. a3 {[%clk 00:16:32]} {[%emt 00:19:56]} Kb8 {[%clk 00:11:58]} 16.
b4 {[%clk 00:16:32]} Nd4 {[%clk 00:11:58]} 17. Nxd4 {[%clk 00:16:32]} {[%emt
00:00:33]} exd4 {[%clk 00:11:50]} 18. Bxd4 {[%clk 00:16:35]} c5 {[%clk
00:11:50]} 19. b5 {[%clk 00:16:32]} Qb7 {[%clk 00:11:50]} 20. Bc3 {[%clk
00:16:36]} {[%emt 00:00:43]} a6 {[%clk 00:11:29]} 21. Qa4 {[%clk 00:16:36]}
{[%emt 00:00:23]} axb5 {[%clk 00:11:26]} 22. cxb5 {[%clk 00:16:44]} {[%emt
00:00:15]} d5 {[%clk 00:11:03]} 23. f3 {[%clk 00:16:52]} d4 {[%clk 00:11:03]}
24. Bd2 {[%clk 00:16:52]} {[%emt 00:00:35]} c4 {[%clk 00:10:46]} 25. Bf4+
{[%clk 00:17:00]} Rc7 {[%clk 00:10:46]} 26. Bxc7+ {[%clk 00:16:52]} Qxc7 {[%clk
00:10:46]} 27. dxc4 {[%clk 00:17:02]} {[%emt 00:00:38]} d3 {[%clk 00:10:49]} 28.
Rd1 {[%clk 00:17:04]} Qd7 {[%clk 00:10:49]} 29. Kf2 {[%clk 00:17:02]} Bc5+
{[%clk 00:10:49]} 30. Ke1 {[%clk 00:17:04]} {[%emt 00:00:06]} Qc7 {[%clk
00:10:49]} 31. Kf2 {[%clk 00:17:04]} {[%emt 00:00:18]} 1-0

[Event "Chessity Nationale Pupillendag 2018 - Groep G"]
[Site "Meppel, Netherlands"]
[Date "2018.06.23"]
[Round "2.1"]
[White "Smets, Cas"]
[Black "Aubel, Daan"]
[Result "0-1"]
[TimeControl "15 min + 10 sec"]
[WhiteElo "428"]
[BlackElo "833"]

1. e4 {[%emt 00:00:02]} d5 {[%clk 00:15:17]} {[%emt 00:00:01]} 2. Nc3 {[%clk
00:15:28]} {[%emt 00:00:01]} d4 {[%clk 00:15:23]} {[%emt 00:00:05]} 3. Nb5
{[%clk 00:15:36]} {[%emt 00:00:01]} e5 {[%clk 00:15:28]} {[%emt 00:00:05]} 4.
d3 {[%clk 00:15:37]} {[%emt 00:00:09]} a6 {[%clk 00:15:35]} {[%emt 00:00:02]} 5.
Na3 {[%clk 00:15:46]} {[%emt 00:00:02]} Nf6 {[%clk 00:15:41]} {[%emt 00:00:03]}
6. Nf3 {[%clk 00:15:53]} {[%emt 00:00:04]} Bg4 {[%clk 00:15:47]} {[%emt
00:00:03]} 7. c4 {[%clk 00:15:57]} {[%emt 00:00:07]} dxc3 {[%clk 00:15:52]}
{[%emt 00:00:05]} 8. bxc3 {[%clk 00:16:05]} {[%emt 00:00:01]} Nc6 {[%clk
00:15:48]} {[%emt 00:00:15]} 9. h3 {[%clk 00:16:08]} {[%emt 00:00:07]} Bxf3
{[%clk 00:15:54]} {[%emt 00:00:04]} 10. gxf3 {[%clk 00:16:16]} {[%emt
00:00:02]} Bc5 {[%clk 00:15:49]} {[%emt 00:00:15]} 11. Bb2 {[%clk 00:16:10]}
{[%emt 00:00:16]} Qd6 {[%clk 00:15:54]} {[%emt 00:00:03]} 0-1

[Event "Chessity Nationale Pupillendag 2018 - Groep G"]
[Site "Meppel, Netherlands"]
[Date "2018.06.23"]
[Round "2.2"]
[White "Verwer, Oscar"]
[Black "Bernard, Ivan"]
[Result "1-0"]
[TimeControl "15 min + 10 sec"]
[WhiteElo "833"]
[BlackElo "411"]

1. e4 {[%clk 00:15:18]} {[%emt 00:00:02]} e5 {[%clk 00:15:16]} {[%emt
00:00:05]} 2. Nf3 {[%clk 00:15:25]} {[%emt 00:00:01]} Qf6 {[%clk 00:15:13]}
{[%emt 00:00:13]} 3. Nc3 {[%clk 00:15:22]} {[%emt 00:00:14]} Bd6 {[%clk
00:15:18]} {[%emt 00:00:04]} 4. Bc4 {[%clk 00:15:15]} {[%emt 00:00:19]} Nc6
{[%clk 00:15:20]} {[%emt 00:00:07]} 5. O-O {[%clk 00:15:16]} {[%emt 00:00:08]}
Nge7 {[%clk 00:15:21]} {[%emt 00:00:10]} 6. d3 {[%clk 00:15:12]} {[%emt
00:00:15]} Nd4 {[%clk 00:15:26]} {[%emt 00:00:04]} 7. Ng5 {[%clk 00:14:58]}
{[%emt 00:00:23]} Qh6 {[%clk 00:15:14]} {[%emt 00:00:22]} 8. Nxf7 {[%clk
00:14:50]} {[%emt 00:00:19]} Qg6 {[%clk 00:15:13]} {[%emt 00:00:08]} 9. Nxh8
{[%clk 00:14:55]} {[%emt 00:00:08]} Qh6 {[%clk 00:15:21]} {[%emt 00:00:03]} 10.
Bxh6 {[%clk 00:14:58]} {[%emt 00:00:07]} gxh6 {[%clk 00:15:22]} {[%emt
00:00:08]} 11. Qh5+ {[%clk 00:15:05]} {[%emt 00:00:02]} Ng6 {[%clk 00:15:05]}
{[%emt 00:00:28]} 12. Nxg6 {[%clk 00:15:11]} {[%emt 00:00:04]} hxg6 {[%clk
00:15:14]} {[%emt 00:00:01]} 13. Qxg6+ {[%emt 00:00:11]} Kd8 {[%clk 00:15:04]}
{[%emt 00:00:06]} 14. Qg8+ {[%clk 00:15:15]} {[%emt 00:00:17]} Ke7 {[%clk
00:15:11]} {[%emt 00:00:05]} 15. Nd5# {[%clk 00:15:14]} {[%emt 00:00:07]} 1-0